{"text_format":"1","workbook":"xlsx","n_sheets":5,"sheets":["start","dashboard","Data","referentie","variabelen"],"not_rendered":{"charts":1,"images":4,"macros":1,"external_links":0,"defined_names":20,"comments":0,"pivot_tables":1},"unopened":[],"bounds":{"document_bytes":16777216,"sheet_cells":100000,"rows_first":2000,"rows_last":500,"rows_between":2000,"halvings":0,"cell_chars":16384,"cell_head_chars":4096},"cells_cut":0,"cells_raw":0,"read":"whole","date_system":"1900"}

{"sheet":"start","index":0,"n_rows":26,"n_cols":3,"rows_kept":26,"cut":false,"hidden":false,"merged":[]}
[]
[]
[]
[]
[]
[]
[]
[]
[]
[]
[]
[]
[]
[]
[null,"WAT:","Het focusinstrument helpt u te bepalen welke locaties het meeste relevant zijn om proactief een visie te ontwikkelen. "]
[null,null,"Dit resulteert in een rangschikking van de locaties."]
[null,null,"Aan de hand van de (weging van criteria kunt u deze rangschikking verfijnen."]
[]
[null,"Stap 1","importeer uw gegevens"]
[]
[null,"A","Plaats uw gegevens in het tabblad Data conform de structuur van dit tabblad"]
[null,"B","Indien u dit wenst kunt u ook de gegevens rechtstreeks invullen of aanvullen of bewerken"]
[]
[]
[]
[null,"Stap 3","analyseer de gegevens via het dashboard"]

{"sheet":"dashboard","index":1,"n_rows":61,"n_cols":155,"rows_kept":61,"cut":false,"hidden":false,"merged":[]}
[null,null,null,null,null,null,null,null,null,null,null,null,null,null,null,null,null,null,"gemeente","(Multiple Items)"]
[null,null,null,null,null,null,null,null,null,null,null,null,null,null,null,null,null,null,"TYPE","(Multiple Items)"]
[null,null,null,null,null,null,null,null,null,null,1,null,null,null,null,null,null,null,null,{"$f":"IF(dashboard!$T$1=\"(All)\", \"Alle gemeenten\", IF(dashboard!$T$1=\"(Multiple items)\", \"verschillende gemeenten\",dashboard!$T$1))","v":"verschillende gemeenten"}]
[null,"Wegingen instellen",null,null,null,null,null,null,null,null,2,null,null,null,null,null,null,null,"Sum of samen"]
[null,null,null,null,null,null,null,null,null,null,3,null,null,null,null,null,null,null,"NAAM","Total"]
[null,"Draagvlak",null,null,null,null,null,null,null,null,4,null,null,null,null,null,null,null,"Dhaene",-3]
[null,null,null,null,null,null,null,null,null,null,5,null,null,null,null,null,null,null,"Byttebier (/Francois Matthys(Mimotex))",-3]
[null,null,null,null,null,null,null,null,null,null,null,null,null,null,null,null,null,null,"Furniere",-3]
[null,"Impact",null,null,null,null,null,null,null,null,null,"weging aan of af","weging",null,null,null,null,null,"Ververij",-2]
[null,null,null,null,null,null,null,null,null,null,"draagvlak",true,1,null,null,null,1,null,"Destoop",-2]
[null,null,null,null,null,null,null,null,null,null,"verweving",true,1,null,null,null,1,null,"Balcaen/Delrue invest",-2]
[null,"Bereikbaarheid",null,null,null,null,null,null,null,null,"complexiteit",true,1,null,null,null,1,null,"cima-nutrition",-1]
[null,null,null,null,null,null,null,null,null,null,"impact",true,1,null,null,null,1,null,"Vennootschap Frolan",-1]
[null,null,null,null,null,null,null,null,null,null,"bereikbaarheid",true,1,null,null,null,1,null,"Weedries",0]
[null,"Verwevingsgraad",null,null,null,null,null,null,null,null,"leegstand",true,1,null,null,null,1,null,"Venn De Kleine Prins - Werner Saelens",0]
[null,null,null,null,null,null,null,null,null,null,"urgentie",true,1,null,null,null,1,null,"Reynaert",0]
[null,null,null,null,null,null,null,null,null,null,null,null,null,null,null,null,null,null,"onderneming",0]
[null,"Leegstand",null,null,null,null,null,null,null,null,null,null,null,null,null,null,null,null,"Steverlynck",0]
[null,null,null,null,null,null,null,null,null,null,null,null,null,null,null,null,null,null,"stationsomgeving",1]
[null,null,null,null,null,null,null,null,null,null,null,null,null,null,null,null,null,null,"Vanhoutte",1]
[null,"Urgentie",null,null,null,null,null,null,null,null,null,null,null,null,null,null,null,null,"BBC",1]
[null,null,null,null,null,null,null,null,null,null,null,null,null,null,null,null,null,null,"Venn. PVD",1]
[null,null,null,null,null,null,null,null,null,null,null,null,null,null,null,null,null,null,"Pyromedia",2]
[null,null,null,null,null,null,null,null,null,null,null,null,null,null,null,null,null,null,"Venn. Uniproject",3]
[null,null,null,null,null,null,null,null,null,null,null,null,null,null,null,null,null,null,"Venn. Leie Invest - Lafaut Investment",3]
[null,null,null,null,null,null,null,null,null,null,null,null,null,null,null,null,null,null,"BKCP Bank",3]
[null,null,null,null,null,null,null,null,null,null,null,null,null,null,null,null,null,null,"Vennootschap Heirweg ",3]
[null,null,null,null,null,null,null,null,null,null,null,null,null,null,null,null,null,null,"Huis + magazijn Venn. Deroo",4]
[null,"naar beginscherm",null,null,null,null,null,null,null,null,null,null,null,null,null,null,null,null,"Venn. Beaupre",4]
[null,null,null,null,null,null,null,null,null,null,null,null,null,null,null,null,null,null,"Ruïne - deel van RUP Blekerij",4]
[null,null,null,null,null,null,null,null,null,null,null,null,null,null,null,null,null,null,"Draaisma en Desmet",4]
[null,null,null,null,null,null,null,null,null,null,null,null,null,null,null,null,null,null,"Stadseigendom (SOK?)",4]
[null,null,null,null,null,null,null,null,null,null,null,null,null,null,null,null,null,null,"Thomas Goethals Advocaat",4]
[null,null,null,null,null,null,null,null,null,null,null,null,null,null,null,null,null,null,"Grand Total",25]
[]
[]
[]
[]
[]
[]
[]
[]
[]
[null,"v2"]
[]
[]
[]
[]
[]
[null,null,null,1]
[]
[]
[]
[]
[]
[]
[]
[]
[]
[]
[null,null,null,1,null,null,null,null,null,null,null,null,null,null,null,null,null,null,null,null,null,null,null,null,null,null,null,null,null,null,null,null,null,null,null,null,null,null,null,null,null,null,null,null,null,null,null,null,null,null,null,null,null,null,null,null,null,null,null,null,null,null,null,null,null,null,null,null,null,null,null,null,null,null,null,null,null,null,null,null,null,null,null,null,null,null,null,null,null,null,null,null,null,null,null,null,null,null,null,null,null,null,null,null,null,null,null,null,null,null,null,null,null,null,null,null,null,null,null,null,null,null,null,null,null,null,null,null,null,null,null,null,null,null,null,null,null,null,null,null,null,null,null,null,null,null,null,null,null,null,null,null,null,null,1]

{"sheet":"Data","index":2,"n_rows":188,"n_cols":23,"rows_kept":188,"cut":false,"hidden":false,"merged":[]}
["NAAM","ACTIVITEIT","OPMERKING","HINDER","TYPE","gemeente","Draagvlak","Impact","Bereikbaarheid","Bouwfys_Kwal","Verwevingsgraad","Complexiteit","Proactief","Leegstand","Urgentie","PROSPECTIE","wDraagvlak","wImpact","wBereikbaarheid","wBOUWFYS_KW","wVERWEVINGS","wCOMPLEXITE","wLEEGSTAND"]
["Nelca","leegstand/in herontwikkeling","RUP goedgekeurd","van milieubelastend naar lokale bedrijvigheid","in herontwikkeling / herontwikkeld","Lendelede","1","1","0","0","0","1"," ","-1","1"," ",{"$f":"G2*wDraagvlak*CDraagvlak","v":1},{"$f":"H2*wImpact*CImpact","v":1},{"$f":"I2*wBereikbaarheid*CBereikbaar","v":0},null,{"$f":"K2*wVerweving*CVerweving","v":0},{"$f":"L2*wComplexiteit*CComplexiteit","v":1},{"$f":"N2*wLeegstand*CLeegstand","v":-1}]
["Steverlynck","textiel","RUP in opmaak","","in herontwikkeling / herontwikkeld","Anzegem","0","1","0","0","-1","0"," ","0","1","Nee",0,1,0,null,-1,0,0]
["Deknudt decora","leegstand","","","leegstand","Deerlijk","0","1","0","0","0","1","Ja","1","1","Ja",0,1,0,null,0,1,1]
["nieuw","drankencentrale","","nee","actief","Avelgem","1","0","0","0","0","0"," ","1","1","Nee",1,0,0,null,0,0,1]
["garage Veys","autogarage","","","leegstand","Avelgem","0","-1","0","0","0","0","Ja","1","0","Nee",0,-1,0,null,0,0,1]
["Lanneau Paul","bouwmaterialen","op koer komen 3 nieuwe woningen + garages","","in herontwikkeling / herontwikkeld","Avelgem","0","0","0","0","0","0","Ja","-1","-1","Nee",0,0,0,null,0,0,-1]
["site Clarysse","boekhoudkantoor (laatste activiteit, nu leegstaand","","","leegstand","Avelgem","-1","0","0","0","0","-1"," ","1","0","Nee",-1,0,0,null,0,-1,1]
["site Denca","ex groothandel handdoeken/zeepartikelen","","","leegstand","Avelgem","0","-1","0","0","-1","-1"," ","1","0","Nee",0,-1,0,null,-1,-1,1]
["site Dem's","kleding (laatste activiteit)","","","leegstand","Avelgem","-1","0","0","0","0","-1"," ","1","0"," ",-1,0,0,null,0,-1,1]
["site Intervan/Levan","ex schilderwerken/reclame","naar wonen in relatie met oud containerpark","","leegstand","Avelgem","-1","0","-1","0","0","-1"," ","1","0","Misschien",-1,0,-1,null,0,-1,1]
["Wieme Zephir","ex transport","","","leegstand","Avelgem","1","0","0","0","-1","-1","Ja","1","0","Misschien",1,0,0,null,-1,-1,1]
["TYBER-site","productie namaakbont","bedrijf in vereffening","","leegstand","Menen","1","1","1","0","0","0","Ja","1","1","Misschien",1,1,1,null,0,0,1]
["Cappelle","Chemische nijverheid","maakt deel uit van een strategische site Masterplan Menen ","","actief","Menen","0","1","0","0","-1","1","Ja","-1","0","Misschien",0,1,0,null,-1,1,-1]
["Stationsomgeving Lauwe-Novobloc-site","producent beton - stopgezet","opgenomen in RUP Lauwe Stationsomgeving - in opmaak","","in herontwikkeling / herontwikkeld","Menen","1","0","0","0","0","0","Nee","-1","1","Ja",1,0,0,null,0,0,-1]
["Vorm & Design","Inox","","","in herontwikkeling / herontwikkeld","Menen","0","0","0","0","-1","0"," ","-1","-1","Nee",0,0,0,null,-1,0,-1]
["Deknudt spiegelfabriek","leegstand","","","actief","Deerlijk","1","1","0","0","0","1"," ","0","-1","Misschien",1,1,0,null,0,1,0]
["Reynaert","textiel","vergunning afgeleverd - KMO","","in herontwikkeling / herontwikkeld","Anzegem","0","1","0","0","-1","-1","Ja","1","-1","Nee",0,1,0,null,-1,-1,1]
["stationsomgeving","productie meststoffen e.a.","rup in opmaak","ja","in herontwikkeling / herontwikkeld","Anzegem","1","0","0","0","0","1"," ","-1","1"," ",1,0,0,null,0,1,-1]
["Byttebier (/Francois Matthys(Mimotex))","textiel en assemblage machines","opnieuw productie","","actief","Anzegem","0","0","0","0","-1","-1"," ","-1","-1","Nee",0,0,0,null,-1,-1,-1]
["Furniere","textiel","snelverkennend onderzoek","","leegstand","Anzegem","-1","0","-1","0","-1","-1","Ja","1","0","Misschien",-1,0,-1,null,-1,-1,1]
["BBC","bouw","","","leegstand","Anzegem","1","0","1","0","-1","-1"," ","1","1","Misschien",1,0,1,null,-1,-1,1]
["Vanhoutte","textiel","RUP opgestart","","leegstand","Anzegem","1","0","0","0","0","-1","Ja","1","1","Nee",1,0,0,null,0,-1,1]
["Weedries","geen","RUP goedgekeurd","neen","in herontwikkeling / herontwikkeld","Anzegem","0","0","0","0","0","-1"," ","1","1","Misschien",0,0,0,null,0,-1,1]
["Balcaen/Delrue invest","opslag","","","leegstand","Anzegem","0","-1","0","0","0","0"," ","-1","0","Nee",0,-1,0,null,0,0,-1]
["Destoop","kippenslachthuis","verkocht","","in herontwikkeling / herontwikkeld","Anzegem","0","-1","0","0","-1","-1"," ","1","-1","Nee",0,-1,0,null,-1,-1,1]
["Dhaene","textiel","","","leegstand","Anzegem","0","-1","0","0","0","-1"," ","-1","-1","Nee",0,-1,0,null,0,-1,-1]
["Site SOFINAL - Fabrieksstraat","leegstaand - faillissement","Kan herontwikkeld worden op middellange termijn - brownfieldconvenant - rup stationsomgeving","","leegstand","Waregem","1","1","-1","0","-1","1"," ","1","1","Nee",1,1,-1,null,-1,1,1]
["Dejaeghere + W&Z betoncentrale","Gesloopt","In herontwikkeling","","in herontwikkeling / herontwikkeld","Waregem","1","1","0","0","0","0"," ","-1","0"," ",1,1,0,null,0,0,-1]
["SOFINAL - Westerlaan","Gesloopt","in herontwikkeling","","in herontwikkeling / herontwikkeld","Waregem","1","0","0","0","0","0"," ","-1","0"," ",1,0,0,null,0,0,-1]
["Site Weversstraat","Gesloopt","in herontwikkeling","","in herontwikkeling / herontwikkeld","Waregem","1","0","-1","0","-1","0","Ja","-1","0"," ",1,0,-1,null,-1,0,-1]
["Site Stow - Menenstraat 506","leegstand","Rup goedgekeurd / beroep lopend/ private ontwikkelaar verstrengeld in juridische procedure","","in herontwikkeling / herontwikkeld","Wevelgem","1","-1","1","0","0","0"," ","0","-1","Misschien",1,-1,1,null,0,0,0]
["Herpels - Roodbaardstraat","verschillende lokale bedrijven","miliebelastende industrie","","actief","Wevelgem","1","0","-1","0","-1","0","Nee","0","1"," ",1,0,-1,null,-1,0,0]
["Alliance-Ipso - Nieuwstraat 146","Metaalindustrie-wasmachines","verhuizen deel van productie naar Tsjechië","lawaai, laden en lossen","potentieel","Wevelgem","-1","1","-1","0","-1","1","Ja","0","1","Ja",{"$f":"G34*wDraagvlak*CDraagvlak","v":-1},{"$f":"H34*wImpact*CImpact","v":1},{"$f":"I34*wBereikbaarheid*CBereikbaar","v":-1},null,{"$f":"K34*wVerweving*CVerweving","v":-1},{"$f":"L34*wComplexiteit*CComplexiteit","v":1},{"$f":"N34*wLeegstand*CLeegstand","v":0}]
["New Franco Belge Leiestraat 38/40/42","textiel, opslag overheid","Grootste deel staat leeg","geen","in herontwikkeling / herontwikkeld","Wevelgem","-1","1","-1","0","-1","0"," ","1","1","Ja",-1,1,-1,null,-1,0,1]
["Site Steeno","opslag","kan herontwikkeld worden","geen","leegstand","Zwevegem","0","-1","-1","0","-1","-1"," ","1","-1","Nee",0,-1,-1,null,-1,-1,1]
["Site Walcarius","Textiel","","","in herontwikkeling / herontwikkeld","Zwevegem","0","-1","0","0","-1","-1"," ","-1","-1","Nee",0,-1,0,null,-1,-1,-1]
["Site Bertrem","Textiel","","","in herontwikkeling / herontwikkeld","Zwevegem","0","-1","0","0","-1","-1","Ja","-1","0","Misschien",0,-1,0,null,-1,-1,-1]
["Site Fabrimmo","inactief","","","in herontwikkeling / herontwikkeld","Zwevegem","-1","0","-1","0","0","-1"," ","-1","-1","Nee",-1,0,-1,null,0,-1,-1]
["site de laere","opslag","","","leegstand","Zwevegem","0","0","-1","0","-1","-1"," ","1","-1","Nee",0,0,-1,null,-1,-1,1]
["Site Evilo","inactief","","","actief","Zwevegem","1","-1","0","0","-1","-1","Ja","-1","0","Ja",1,-1,0,null,-1,-1,-1]
["Fenaux","Stopgezet","Kan herontwikkeld worden","","leegstand","Kuurne","0","0","1","0","-1","-1"," ","1","1","Nee",0,0,1,null,-1,-1,1]
["Mileubelastend Industriegebied Nieuwenhuyse","Stopgezet","","","leegstand","Kuurne","0","0","-1","0","0","0","Ja","1","1","Misschien",0,0,-1,null,0,0,1]
["Stroomop","pelletverwarming, zonne-energie en ventilatie-syst","binnenkort komt hier een vestiging van Stroomop","","in herontwikkeling / herontwikkeld","Kuurne","0","-1","-1","0","0","0"," ","-1","-1","Nee",0,-1,-1,null,0,0,-1]
["Meubelen Deconinck","ex-meubelfabriek","deconinck meubelfabriek - gepland jaagpad aan achterkant. Staat leeg.","geen specifieke hinder","leegstand","Kortrijk","0","-1","1","0","-1","0"," ","1","0","Misschien",0,-1,1,null,-1,0,1]
["Westfields","houthandel","gepland jaagpad aan de achterkant, staat leeg","Geen specifieke hinder","leegstand","Kortrijk","0","-1","1","0","-1","0"," ","1","0","Misschien",0,-1,1,null,-1,0,1]
["Ex Wijnen De Clercq","Commerciële verkoop dranken","leegstand (bestaat uit twee delen) in RUP wijnen declercq","geen specifieke hinder","leegstand","Kortrijk","1","0","0","0","1","0"," ","1","0","Ja",1,0,0,null,1,0,1]
["Eandis","Grotendeels leegstand","Deels vervuild, eandis, brownfieldconvenant","","leegstand","Kortrijk","0","0","-1","0","0","1"," ","1","0","Nee",0,0,-1,null,0,1,1]
["Marbralys","marmer","","beperkt","actief","Harelbeke","1","1","-1","0","0","1","Ja","-1","0","Ja",1,1,-1,null,0,1,-1]
["Site Bozestraat","Opslag","vroeger snel verkennend onderzoek Deel leegstand, vroegere spiegelfabriek Mirolux","Geen specifieke hinder","leegstand","Kortrijk","0","0","-1","0","0","0","Ja","1","0","Misschien",0,0,-1,null,0,0,1]
["Bissegem-station","Sterilisatiebedrijf, autohandel, aluminiumgieterij","aanwezigheid spoor, deels onderdeel van groep Malysse, Diesel (autohandel); Declerq (alu), CES (klimatisatie). Aanwezigheid Heulebeek. Wordt meegenomen in de studie rond Bissegemplaats","Geen specifieke hinder","actief","Kortrijk","1","0","0","0","0","1","Ja","-1","-1"," ",1,0,0,null,0,1,-1]
["Walotex","Textiel","","Geen specifieke hinder","actief","Kortrijk","-1","-1","-1","0","-1","0","Ja","-1","-1","Misschien",-1,-1,-1,null,-1,0,-1]
["Site Devos - vroegere Lidl supermarkt","is op heden een CASINO- zie sted verg 153/2014","","","actief","Menen","0","0","1","0","0","-1"," ","-1","-1","Nee",0,0,1,null,0,-1,-1]
["Vangansewinkel - Menenstraat 306"," ","herbestemming menenstraat noord a","","in herontwikkeling / herontwikkeld","Wevelgem","1","-1","1","0","1","-1","Nee","1","1","Nee",1,-1,1,null,1,-1,1]
["stallen vangeenberghe","vroegere zilverenspoor, recente doorhaling KBO","bestemming bpa stoeterij","","leegstand","Wevelgem","-1","1","-1","0","-1","0"," ","1","1","Ja",-1,1,-1,null,-1,0,1]
["Lidl","detailverkoop","nu gebruikt voor opslag","geen","actief","Wervik","1","0","0","0","1","0","Ja","-1","0","Misschien",1,0,0,null,1,0,-1]
["Ghesqiuère","plantenkwekerij","nog geen nabestemming","geen","leegstand","Wervik","1","-1","1","0","-1","-1"," ","1","0","Misschien",1,-1,1,null,-1,-1,1]
["Crack","Meubelbedrijf","Winkel is gesloten, leegstaand ?","geen","leegstand","Wervik","0","0","1","0","-1","0"," ","1","0","Misschien",0,0,1,null,-1,0,1]
["Niet gekend","garage","nog in te vullen","geen","leegstand","Wervik","-1","1","-1","0","1","1"," ","1","0","Nee",-1,1,-1,null,1,1,1]
["niet gekend","niet gekend","nog in te vullen (leegstand ?)","geen","leegstand","Wervik","-1","1","-1","0","-1","0"," ","1","-1"," ",-1,1,-1,null,-1,0,1]
["Villez","geen","geenactiviteit gekend","geen","leegstand","Wervik","0","0","0","0","0","0"," ","1","-1"," ",0,0,0,null,0,0,1]
["Sobelcard","textiel","","","leegstand","Zwevegem","1","1","0","0","1","0","Ja","-1","0","Ja",1,1,0,null,1,0,-1]
["tegelhuis Delvael","telgs, opslag","aanvraag voor garageboxen","vuil","leegstand","Wervik","-1","0","0","0","0","0","Nee","1","-1","Nee",-1,0,0,null,0,0,1]
["Movelta","Weverij","staat te koop","nee","leegstand","Deerlijk","0","0","-1","0","0","0"," ","1","0","Ja",0,0,-1,null,0,0,1]
["Verstraete-Verbauwede","productie textielproducten","Bedrijf kan op korte termijn productie stopzetten","Nee","actief","Deerlijk","0","-1","0","0","-1","-1","Ja","-1","-1","Misschien",0,-1,0,null,-1,-1,-1]
["Deerlijkse NV Detis","wevervij","vraag om kleinhandelscomplex op te richten, bestemming paars/rood","Nee","leegstand","Deerlijk","0","0","0","0","0","0","Ja","1","0","Ja",{"$f":"G66*wDraagvlak*CDraagvlak","v":0},{"$f":"H66*wImpact*CImpact","v":0},{"$f":"I66*wBereikbaarheid*CBereikbaar","v":0},null,{"$f":"K66*wVerweving*CVerweving","v":0},{"$f":"L66*wComplexiteit*CComplexiteit","v":0},{"$f":"N66*wLeegstand*CLeegstand","v":1}]
["Deknudt"," meubelfabriek","moeilijke vorm van terrein, in buitengebied gelegen","Nee","leegstand","Deerlijk","0","-1","0","0","-1","0","Ja","1","0","Misschien",0,-1,0,null,-1,0,1]
["Saggaert"," ","te huur, in te delen voor meedere kleinere bedrijven - ev interessant voor wonen","Nee","leegstand","Harelbeke","0","0","1","0","-1","0","Ja","1","1","Misschien",0,0,1,null,-1,0,1]
["sites vaartstraat"," ","","","actief","Zwevegem","0","0","-1","0","0","-1","Ja","0","0","Misschien",0,0,-1,null,0,-1,0]
["cima-nutrition","dierenvoeding (honden, katten)","","/","actief","Anzegem","0","0","0","0","0","0","Ja","-1","0","Ja",0,0,0,null,0,0,-1]
["technische dienst","technische dienst","","","actief","Wervik","1","1","-1","0","0","0","Ja","-1","1","Ja",1,1,-1,null,0,0,-1]
["Ververij","textielveredeling","","","actief","Anzegem","0","0","0","0","0","-1"," ","-1","-1","Misschien",0,0,0,null,0,-1,-1]
["??"," ","naar wonen","","leegstand","Spiere-Helkijn","-1","-1","0","0","-1","-1"," ","1","0","Ja",-1,-1,0,null,-1,-1,1]
["?"," ","naar wonen","","leegstand","Spiere-Helkijn","-1","-1","0","0","-1","-1"," ","1","0","Ja",-1,-1,0,null,-1,-1,1]
["solidor","banden, rubber","zou verhuizen naar wevelgem zuid","","actief","Menen","0","0","0","0","0","1"," ","-1","0","Misschien",0,0,0,null,0,1,-1]
["autohandel Rubbens","autohandel","","","actief","Menen","0","0","0","0","0","0"," ","-1","-1","Nee",0,0,0,null,0,0,-1]
["Milieubelastende industrie Knokbeeklaan ","milieubelastende industrie Knokbeeklaan ","maakt deel uit van RUP Lauwe Stationsomgeving in opmaak","","in herontwikkeling / herontwikkeld","Menen","1","0","0","0","-1","0",null,"-1","1",null,1,0,0,null,-1,0,-1]
["Hanssens","ex-pannenbakkerij - nu verhuur met lage impact","Leiedal reeds gedeelte verworven","","leegstand","Zwevegem","0","0","0","0","0","0"," ","0","0","Ja",0,0,0,null,0,0,0]
["Gullegemstraat 141","Groothandel chemische producten","BPAW6f zone voor klein bedrijf",null,"actief","Wevelgem","0","0","0","0","0","0",null,"-1","0",null,0,0,0,null,0,0,-1]
["Roterijstraat 58","pacific gym","BPAW6f zone voor klein bedrijf",null,"actief","Wevelgem","1","0","0","0","0","0",null,"-1","-1",null,1,0,0,null,0,0,-1]
["Roterijstraat 80","Grubeau","BPAW6f zone voor klein bedrijf",null,"actief","Wevelgem","1","-1","0","0","1","0",null,"-1","-1",null,1,-1,0,null,1,0,-1]
["Roeselarestraat 125-127","schrijnwerkerij","BPAW1f zone voor stapelplaatsen en kleine bedrijven (niet storend voor woonomgeving)",null,"actief","Wevelgem","1","-1","0","0","0","0",null,"-1","-1",null,1,-1,0,null,0,0,-1]
["Moorselestraat 120","tapijten Demuynck","BPAW1f zone voor stapelplaatsen en kleine bedrijven (niet storend voor de woonomgeving)",null,"actief","Wevelgem","1","-1","0","0","0","0",null,"-1","-1",null,1,-1,0,null,0,0,-1]
["Toekomststraat 56","ND Dakwerken","BPAW1f zone voor stapelplaatsen en kleine bedrijven",null,"actief","Wevelgem","1","-1","-1","0","0","0",null,"-1","-1",null,1,-1,-1,null,0,0,-1]
["Guido Gezellestraat 65","dakwerken Moerkerke","BPAW1f zone met nabestemming wonen en tuin",null,"actief","Wevelgem","1","0","-1","0","-1","0",null,"-1","-1",null,1,0,-1,null,-1,0,-1]
["Neerhofstraat 55",null,"BPAW6f zone voor klein bedrijf",null,"actief","Wevelgem","1","-1","-1","0","1","0",null,"-1","-1",null,1,-1,-1,null,1,0,-1]
["Roeselarestraat 42 ","voormalige bij den breier","BPAW6f zone voor klein bedrijf",null,"actief","Wevelgem","1","-1","-1","0","0","0",null,"-1","-1",null,1,-1,-1,null,0,0,-1]
["Jan Breydelstraat 54","garagewerkplaats","BPAW1f zone voor stapelplaatsen en kleine bedrijven (niet storend voor de woonomgeving)",null,"actief","Wevelgem","1","-1","-1","0","1","0",null,"-1","-1",null,1,-1,-1,null,1,0,-1]
["Lauwestraat 154","carrosserie Beyls","BPAW3i zone voor kleine bedrijven niet storend voor de woonomgeving",null,"actief","Wevelgem","1","0","0","0","-1","0",null,"-1","-1",null,1,0,0,null,-1,0,-1]
["Menenstraat 163","callens timmerman","BPA12b zone voor ambachtelijke bedrijven",null,"actief","Wevelgem","1","-1","1","0","1","0",null,"-1","-1",null,1,-1,1,null,1,0,-1]
["Menenstraat 233 - 255 ","motoparts, voormalige vleeshandel cousin","BPA12b zone voor ambachtelijke bedrijven",null,"actief","Wevelgem","1","-1","1","0","0","0",null,"-1","-1",null,1,-1,1,null,0,0,-1]
["Wittemolenstraat 191","Garage vergote","BPAM8 zone voor ambacht",null,"actief","Wevelgem","0","0","0","0","0","0",null,"-1","-1",null,0,0,0,null,0,0,-1]
["Klaratex Lauwestraat137","Wasserij st Klara","BPAW3i zone voor kleine bedrijven niet storend voor de woonomgeving",null,"actief","Wevelgem","1","0","0","0","0","0",null,"-1","-1",null,1,0,0,null,0,0,-1]
["Tuinstraat 10","aannemer","BPAW28 zone voor stapelplaatsen en kleine bedrijven",null,"actief","Wevelgem","1","-1","-1","0","0","0",null,"-1","-1",null,1,-1,-1,null,0,0,-1]
["Normadiëstraat 77","voormalige doe-het-zelf","BPAW28 zone voor stapelplaatsen en kleine bedrijven niet storend voor de woonomgeving",null,"actief","Wevelgem","1","-1","-1","0","0","0",null,"-1","-1",null,1,-1,-1,null,0,0,-1]
["Dadizelestraat 32","schrijnwerkerij","BPAM8 zone voor ambacht",null,"actief","Wevelgem","0","0","0","0","0","0",null,"-1","0",null,0,0,0,null,0,0,-1]
["Wittemolenstraat 212","Garage vergote","BPAM8 zone voor ambacht",null,"actief","Wevelgem","0","0","0","0","0","0",null,"-1","-1",null,0,0,0,null,0,0,-1]
["Valvan ","Containers ","behandeling in CBS van 20/10/2014 - mogelijkheid tot uitbreiding bedrijf",null,"actief","Menen","0","0","0","0","0","0",null,"-1","-1",null,{"$f":"G98*wDraagvlak*CDraagvlak","v":0},{"$f":"H98*wImpact*CImpact","v":0},{"$f":"I98*wBereikbaarheid*CBereikbaar","v":0},null,{"$f":"K98*wVerweving*CVerweving","v":0},{"$f":"L98*wComplexiteit*CComplexiteit","v":0},{"$f":"N98*wLeegstand*CLeegstand","v":-1}]
["Ledegemstraat 199","waterzuivering","RUP (prov.) 'RWZI Ledegem'gebied voor zuiveringsinfrastructuur voor afvalwater 'Ledegem'",null,"actief","Wevelgem","1","-1","1","0","0","0",null,"-1","-1",null,1,-1,1,null,0,0,-1]
["Rozenstraat 132","interieur Mestdag","BPA 'Kortrijkstraat, wijz.F' zone voor kleine bedrijven verenigbaar met de woonomgeving",null,"actief","Wevelgem","1","-1","1","0","0","0",null,"-1","-1",null,1,-1,1,null,0,0,-1]
["Vrijstraat 39+",null,"BPA 'Vrijstraat, wijz.B' zone voor klein bedrijf",null,"actief","Wevelgem","0","0","0","0","0","0",null,"-1","-1",null,0,0,0,null,0,0,-1]
["Karrestraat 21-23","zuivelbedrijf commeyne","BPA 'Vrijstraat, wijz.B' zone voor klein bedrijf",null,"actief","Wevelgem","0","0","0","0","-1","0",null,"-1","-1",null,0,0,0,null,-1,0,-1]
["Kezelberg 11",null,"sectoraal bpa zonevreemde bedrijven",null,"actief","Wevelgem","1","-1","1","0","1","0",null,"-1","-1",null,1,-1,1,null,1,0,-1]
["ledegemstraat 38-50",null,"BPA 'Kapelstraat, wijz.A' zone voor stapelplaatsen en kleine bedrijven",null,"actief","Wevelgem","0","0","0","0","0","0",null,"-1","-1",null,0,0,0,null,0,0,-1]
["Overheulestraat 87-89","garage","BPA 'Kapelstraat, wijz.A' zone voor stapelplaatsen en kleine bedrijven",null,"actief","Wevelgem","0","0","0","0","1","0",null,"-1","-1",null,0,0,0,null,1,0,-1]
["Rozenstraat 93b","De geest","BPA 'Kortrijkstraat, wijz.F' zone voor kleine bedrijven verenigbaar met de woonomgeving",null,"actief","Wevelgem","1","-1","0","0","0","0",null,"-1","-1",null,1,-1,0,null,0,0,-1]
["Heerweg-Caesar Gezellestraat","Antoon De Cock","BPA 'Kortrijkstraat, wijz.F' zone vuitbereiding van kleine bedrijven verenigbaar met de woonomgeving",null,"actief","Wevelgem","1","-1","0","0","1","0",null,"-1","-1",null,1,-1,0,null,1,0,-1]
["Heerweg 60",null,"BPA 'Kortrijkstraat, wijz.F' zone voor kleine bedrijven verenigbaar met de woonomgeving",null,"actief","Wevelgem","1","-1","0","0","0","0",null,"-1","-1",null,1,-1,0,null,0,0,-1]
["Secretaris Vanmarckelaan 21-23","bakkerij","BPA 'Kortrijkstraat, wijz.F' zone voor kleine bedrijven verenigbaar met de woonomgeving",null,"actief","Wevelgem","1","-1","1","0","1","0",null,"-1","-1",null,1,-1,1,null,1,0,-1]
["Wittemolenstraat 8","De geest","BPA 'Vrijstraat, wijz.B' zone voor klein bedrijf",null,"actief","Wevelgem","1","-1","0","0","0","0",null,"-1","-1",null,1,-1,0,null,0,0,-1]
["Sint-Janstraat 10",null,"BPA 'Vrijstraat, wijz.B' zone voor klein bedrijf",null,"actief","Wevelgem","0","0","0","0","0","0",null,"-1","-1",null,0,0,0,null,0,0,-1]
["Warandestraat 12b",null,"BPA 'Vrijstraat, wijz.B' zone voor klein bedrijf",null,"actief","Wevelgem","0","0","0","0","0","0",null,"-1","-1",null,0,0,0,null,0,0,-1]
["Karrestraat 57","autobedrijf","BPA 'Vrijstraat, wijz.B' zone voor klein bedrijf",null,"actief","Wevelgem","0","0","0","0","0","0",null,"-1","-1",null,0,0,0,null,0,0,-1]
["Warandestraat 54",null,"BPA 'Vrijstraat, wijz.B' zone voor klein bedrijf",null,"actief","Wevelgem","0","0","0","0","0","0",null,"-1","-1",null,0,0,0,null,0,0,-1]
["De Westakker 105","Garage Dujardin","BPA 'Sectoraal BPA zonevreemde bedrijven'",null,"actief","Wevelgem","1","-1","0","0","0","0",null,"-1","-1",null,1,-1,0,null,0,0,-1]
["Bissegemstraat 145-195","verschillende","BPA 'Maddensreke' zone voor nijverheid",null,"actief","Wevelgem","1","0","1","0","0","0",null,"-1","0",null,1,0,1,null,0,0,-1]
["Hugo verriestlaan 24","metaalbewerking","BPA 'Maddensreke' zone voor stapelplaatsen en kleine bedrijven",null,"actief","Wevelgem","1","-1","0","0","0","0",null,"-1","-1",null,1,-1,0,null,0,0,-1]
["Koningin Fabiolastraat 130","Hansens catering","BPA 'Grote Ieperstraat, wijz. A' zone voor nijverheid",null,"actief","Wevelgem","1","-1","1","0","1","0",null,"-1","-1",null,1,-1,1,null,1,0,-1]
["Grootmoeders Koffie Kleine Ieperstraat 11","koffiebranderij","BPA 'Grote Ieperstraat' zone voor stapelplaatsen en kleine bedrijven en voor nijverheid",null,"actief","Wevelgem","1","-1","1","0","1","0",null,"-1","-1",null,1,-1,1,null,1,0,-1]
["Dancing Lagoa","Dancing","maakt deel uit van een strategische site Masterplan Menen ",null,"actief","Menen","-1","0","1","0","0","0",null,"-1","0",null,-1,0,1,null,0,0,-1]
["Site Fournier","Tuincentrum","maakt deel uit van een strategische site in Masterplan Menen ",null,"actief","Menen","0","1","-1","0","0","0",null,"-1","1",null,0,1,-1,null,0,0,-1]
["Reznor","verwarming, koeling, ventilatie - industrieel ",null,null,"actief","Menen","0","0","-1","0","-1","0",null,"-1","0",null,0,0,-1,null,-1,0,-1]
["EVM-site ","glascentrale ","maakt deel uit van een strategische site van het Masterplan Menen ",null,"actief","Menen","-1","0","-1","0","-1","0",null,"-1","1",null,-1,0,-1,null,-1,0,-1]
["Autoparts","Auto-onderdelen","maakt deel uit van strategische site Masterplan Menen",null,"leegstand","Menen","0","0","0","0","-1","0",null,"1","1",null,0,0,0,null,-1,0,1]
["Galloo ","recyclagebedrijf","wordt verder onderzocht voor SRUP",null,"leegstand","Menen","1","0","1","0","0","0",null,"1","1",null,1,0,1,null,0,0,1]
["Site Lavaert","Afbraak, grondwerken en compostering","RUP Lauwe Stationsomgeving in opmaak",null,"actief","Menen","1","1","0","0","0","0",null,"-1","1",null,1,1,0,null,0,0,-1]
["Site Carlos Desmet","Houtverwerking- en opslag","mogelijkheid wordt onderzocht voor sectoraal RUP",null,"actief","Menen","1","0","0","0","0","0",null,"-1","1",null,1,0,0,null,0,0,-1]
["Primus","wasmachines opslag, houtbewerkin, metaal bewerking","milieubelastende industrie/ Signaalgebied","te evalueren","potentieel","Wevelgem","-1","1","0","0","-1","0",null,"0","1",null,-1,1,0,null,-1,0,0]
["ideal spun decoene","hout","woongebied gewest","te evalueren","potentieel","Wevelgem","-1","1","0","0","-1","0",null,"0","1",null,-1,1,0,null,-1,0,0]
["TVH- Frematogroep Driemasten 126-130","heftrucks","Industriegebied Gewestplan",null,"actief","Wevelgem","1","-1","0","0","0","0",null,"-1","-1",null,{"$f":"G130*wDraagvlak*CDraagvlak","v":1},{"$f":"H130*wImpact*CImpact","v":-1},{"$f":"I130*wBereikbaarheid*CBereikbaar","v":0},null,{"$f":"K130*wVerweving*CVerweving","v":0},{"$f":"L130*wComplexiteit*CComplexiteit","v":0},{"$f":"N130*wLeegstand*CLeegstand","v":-1}]
["Elektro David - Bissegemstraat","Elektro","Milieubelastende industrie",null,"actief","Wevelgem","1","-1","1","0","0","0",null,"-1","-1",null,1,-1,1,null,0,0,-1]
["Aquiles Weverijstraat","Rubber","Milieubelastende industrie gewestplan",null,"in herontwikkeling / herontwikkeld","Wevelgem","-1","1","-1","0","-1","0",null,"-1","1",null,-1,1,-1,null,-1,0,-1]
["Megibeg / Valcke - Menenstraat","Rubber / bowling / hout","Rup Menenstraat noord",null,"actief","Wevelgem","1","-1","1","0","1","0",null,"-1","-1",null,1,-1,1,null,1,0,-1]
["Unigom Menenstraat","Rubber","RUP menenstraat Noord A",null,"actief","Wevelgem","1","-1","1","0","1","0",null,"-1","-1",null,1,-1,1,null,1,0,-1]
["Clique Nachtegaalstraat","Tuindecor","bpa",null,"actief","Wevelgem","1","0","-1","0","-1","0",null,"-1","-1",null,1,0,-1,null,-1,0,-1]
["Jolipa","groothandel juwelen","RUP kleine molen",null,"in herontwikkeling / herontwikkeld","Wevelgem","1","0","-1","0","-1","0",null,"-1","-1",null,1,0,-1,null,-1,0,-1]
["Gescova Menenstraat","Groothandel tuinmeubelen","Milieubelastend Industriegebied Gewestplan",null,"actief","Wevelgem","1","1","1","0","-1","0",null,"-1","-1",null,1,1,1,null,-1,0,-1]
["Site Fabriekstraat","Glascentrale/schrijnwerk/steenkapperij","milieubelastende industrie gewestplan",null,"actief","Wevelgem","1","1","1","0","-1","0",null,"-1","-1",null,1,1,1,null,-1,0,-1]
["Douchy 2","garagewerkplaats","sectoraal BPA",null,"actief","Wevelgem","1","-1","1","0","0","0",null,"-1","-1",null,1,-1,1,null,0,0,-1]
["Lighthouse ea Roeselarestraat","bouwmaterialen","BPA wijnber wijziging F zone klein bedrijf",null,"actief","Wevelgem","0","1","0","0","-1","0",null,"-1","1",null,0,1,0,null,-1,0,-1]
["Cet motoren Bissegemstraat","opslag","BPA maddensreke & roterijstraat E & F",null,"actief","Wevelgem","1","0","0","0","-1","0",null,"-1","-1",null,1,0,0,null,-1,0,-1]
["Brille Moorselestraat","transport","bpa zone vreemde bedrijven",null,"potentieel","Wevelgem","1","1","0","0","-1","0",null,"0","1",null,1,1,0,null,-1,0,0]
["Parc Saint-Georges","Exclusief Clubhuis",null,null,"actief",null,"1","1","0","0","0","0",null,"-1","-1",null,1,1,0,null,0,0,-1]
["Parc Saint Georges","Exclusief Clubhuis","Zie Doorniksewijk 1",null,"actief",null,"0","0","0","0","0","0",null,"0","0",null,0,0,0,null,0,0,0]
["Pilipili","Design -en ontwerpbureau",null,null,"actief","Kortrijk","1","0","0","0","0","0",null,"-1","-1",null,1,0,0,null,0,0,-1]
["Moulin",null,null,null,"leegstand",null,"0","0","0","0","0","0",null,"0","0",null,0,0,0,null,0,0,0]
["Beugnies Les Chocolats","Chocolatier","Verhuisd naar Aarweg 8, Marke",null,"leegstand","Kortrijk","0","1","0","0","0","0",null,"1","0",null,0,1,0,null,0,0,1]
["JForce","Online betalingen, e-commerce,...","Voormalig Pilipili",null,"actief","Kortrijk","1","-1","1","0","0","0",null,"1","-1",null,1,-1,1,null,0,0,1]
["Duthoo - Costeur","Verf en decoratie","5452 m²",null,"potentieel","Kortrijk","0","0","0","0","0","0",null,"-1","0",null,0,0,0,null,0,0,-1]
["Domein Van De Vlaamse Mpy voor Watervoorziening","Admin Gebouw","4364 m²",null,"actief",null,"0","0","0","0","0","0",null,"0","0",null,0,0,0,null,0,0,0]
["Cardinal","Ex Drukkerij","2043m² - naar wonen",null,"in herontwikkeling / herontwikkeld","Kortrijk","1","0","0","0","1","0",null,"1","-1",null,1,0,0,null,1,0,1]
["Casalis","Tapijten","4050 m²",null,"actief","Kortrijk","1","-1","1","0","1","0",null,"-1","-1",null,1,-1,1,null,1,0,-1]
["Kordekor","Interieurinrichting","3376 m - gepland te verhuizen",null,"potentieel","Kortrijk","0","1","0","0","1","0",null,"-1","0",null,0,1,0,null,1,0,-1]
["Larstraat 206 - 't Hoveke ",null,null,null,"leegstand","Menen ","0","0","0","0","0","0",null,"0","0",null,0,0,0,null,0,0,0]
["Poedermagazijnstraat 61 en +59",null,null,null,"leegstand","menen","0","0","0","0","0","0",null,"0","0",null,0,0,0,null,0,0,0]
["Bruggestraat 564 ",null,null,null,"leegstand","menen","0","0","0","0","0","0",null,"0","0",null,0,0,0,null,0,0,0]
["Grote Weg 23 ",null,null,null,"leegstand","menen","0","0","0","0","0","0",null,"0","0",null,0,0,0,null,0,0,0]
["Hogeweg +99 ",null,null,null,"leegstand","menen ","0","0","0","0","0","0",null,"0","0",null,0,0,0,null,0,0,0]
["Weverij Mirakelstraat","oude weverij","BPA Mirakelstraat - in herziening",null,"leegstand","Waregem","-1","0","0","0","0","0",null,"1","0",null,-1,0,0,null,0,0,1]
["Slachthuizen Goossens","slachterij","Nog actief bedrijf",null,"potentieel","Waregem","1","0","0","0","1","0",null,"-1","-1",null,1,0,0,null,1,0,-1]
["Weverij Vandenberghe","weverij","deels leegstand - geen uiterlijke kenmerken van leegstand",null,"potentieel","Waregem","1","0","0","0","1","0",null,"0","0",null,1,0,0,null,1,0,0]
["Visalux","Verpakkingen, afdekplaatjes, tubes","6086m²",null,"potentieel","Kortrijk","0","0","0","0","0","0",null,"0","0",null,{"$f":"G162*wDraagvlak*CDraagvlak","v":0},{"$f":"H162*wImpact*CImpact","v":0},{"$f":"I162*wBereikbaarheid*CBereikbaar","v":0},null,{"$f":"K162*wVerweving*CVerweving","v":0},{"$f":"L162*wComplexiteit*CComplexiteit","v":0},{"$f":"N162*wLeegstand*CLeegstand","v":0}]
["Ghistelinck","Mercedes Garage","16452 m²",null,"potentieel","Kortrijk","1","0","1","0","-1","0",null,"-1","0",null,1,0,1,null,-1,0,-1]
["Vlieghe","Ramen en deuren","+/- 28000m²",null,"potentieel","Kortrijk","1","0","1","0","-1","0",null,"-1","0",null,1,0,1,null,-1,0,-1]
["Continuga","Drukkerij","Verhuisd naar Kortrijk Noord - 15549m²",null,"potentieel","Kortrijk","1","1","-1","0","1","0",null,"0","1",null,1,1,-1,null,1,0,0]
["Huis + magazijn Venn. Deroo",null,"103 m²huis en 882 m² magazijn",null,"leegstand","Kortrijk (Hoveniersstraat 19)","1","1","0","0","1","0",null,"1","0",null,1,1,0,null,1,0,1]
["Thomas Goethals Advocaat","Werkplaats","1169",null,"leegstand","Kortrijk (Deken Degryselaan +15)","1","1","0","0","1","0",null,"1","0",null,1,1,0,null,1,0,1]
["Vennootschap Frolan","Puin","1221m²",null,"leegstand","Kortrijk (Doornikserijksweg 381)","-1","-1","1","0","-1","0",null,"1","-1",null,-1,-1,1,null,-1,0,1]
["Vennootschap Heirweg ","Puin","996m² - afgesmeten?",null,"leegstand","Kortrijk (Torkonjestraat 100)","1","0","1","0","0","0",null,"1","-1",null,1,0,1,null,0,0,1]
["De Tavernier M & Vanhaecke K.","Leegstaande hoeve","21355 m²",null,"leegstand","Kortrijk","0","0","1","0","-1","0",null,"1","0",null,0,0,1,null,-1,0,1]
["Vennootschap","Magazijn","415m² - verwaarloosd - op instorten - in project",null,"leegstand","Kortrijk","1","1","-1","0","1","0",null,"1","0",null,1,1,-1,null,1,0,1]
[null,null,null,null,"leegstand",null,"0","0","0","0","0","0",null,"0","0",null,0,0,0,null,0,0,0]
["Venn De Kleine Prins - Werner Saelens","Magazijn","1191m²",null,"leegstand","Kortrijk (Marionetten 14)","0","-1","1","0","-1","0",null,"1","-1",null,0,-1,1,null,-1,0,1]
["La Fonciere De Ladrier / A. Trepant","Magazijn","1827m²",null,"leegstand","Kortrijk","1","0","0","0","0","0",null,"1","0",null,1,0,0,null,0,0,1]
["Site Mewaf (Van Marcke)","Opslag - leegstand","51949 m²",null,"leegstand","Kortrijk","1","1","-1","0","1","0",null,"1","1",null,1,1,-1,null,1,0,1]
["Draaisma en Desmet","Midas Garage","694 m²",null,"leegstand","Kortrijk - Meensesteenweg 1/7","1","1","1","0","0","0",null,"1","0",null,1,1,1,null,0,0,1]
["Venn. Uniproject","Werkplaats","8716 m²",null,"leegstand","Kortrijk - Torkonjestraat 75","1","0","1","0","0","0",null,"1","0",null,1,0,1,null,0,0,1]
["Delobelle","Magazijn","1004m²",null,"leegstand","Kortrijk","1","0","0",0,"0","0",null,"0","0",null,1,0,0,null,0,0,0]
["Stadseigendom (SOK?)","??","682 m²",null,"leegstand","Kortrijk - Zwevegemsestraat 31","1","1","0","0","1","0",null,"1","0",null,1,1,0,null,1,0,1]
["Rup Blekerij","Ex Citroëngarage","1887m² OCMW - AFBLIJVEN!",null,"leegstand","Kortrijk","1","1","0","0","1","0",null,"1","1",null,1,1,0,null,1,0,1]
["Venn. PVD","Magazijn ","1991 m²",null,"leegstand","Kortrijk - Doornstraat 4/6","1","-1","0","0","0","0",null,"1","0",null,1,-1,0,null,0,0,1]
["BKCP Bank","ex Bank","1180 m² - te koop - vraagprijs 2 miljoen euro",null,"leegstand","Kortrijk - Doorniksestraat 38","1","1","0","0","0","0",null,"1","0",null,1,1,0,null,0,0,1]
["Ruïne - deel van RUP Blekerij","Niets - eigendom OCMW","429 m² - AFBLIJVEN",null,"leegstand","Kortrijk - Havenkaai +5","1","1","0","0","1","0",null,"1","-1",null,1,1,0,null,1,0,1]
["Rup Blekerij","Werkplaats","697m² - Gronden Carlier - AFBLIJVEN",null,"leegstand","Kortrijk","1","1","0","0","1","0",null,"1","1",null,1,1,0,null,1,0,1]
["Venn. Leie Invest - Lafaut Investment","Handelspand - huis","2928 m²",null,"leegstand","Kortrijk - Pastoriestraat 8/10","1","0","0","0","1","0",null,"1","0",null,1,0,0,null,1,0,1]
["Venn. Beaupre","Appartementsgebouw",null,null,"leegstand","Kortrijk - Condédreef +97","1","1","1","0","0","0",null,"1","0",null,1,1,1,null,0,0,1]
["Valcke ","containers","vraag gericht aan dienst RO voor nieuw industrieel gebouw, ter vervanging van bestaande looods ",null,"actief","Menen","0","0","0","0","0","0",null,"-1","1",null,0,0,0,null,0,0,-1]
["Pyromedia","Drukkerij","1300 m² - staat op lijst onroerend erfgoed? beelden?",null,"leegstand","Kortrijk - Mellestraat 148","1","0","0","0","0","0",null,"1","0",null,1,0,0,null,0,0,1]

{"sheet":"referentie","index":3,"n_rows":12,"n_cols":3,"rows_kept":12,"cut":false,"hidden":true,"merged":[]}
[]
[null,"beschrijving","waarde"]
[null,"hoog",1]
[null,"Gemiddeld",0]
[null,"laag",-1]
[null,"ja",1]
[null,"nee",-1]
[null,null,0]
[null," ",0]
[null,0,0]
[null,"gedeeltelijk",0]
[null,"misschien",0]

{"sheet":"variabelen","index":4,"n_rows":13,"n_cols":7,"rows_kept":13,"cut":false,"hidden":true,"merged":[]}
["leegstand",null,"Anzegem",null,"hoog",null,"ja"]
["actief",null,"Avelgem",null,"gemiddeld",null,"gedeeltelijk leeg"]
["in herontwikkeling",null,"Deerlijk",null,"laag",null,"nee"]
["proactief",null,"Harelbeke"]
[null,null,"Kortrijk"]
[null,null,"Kuurne"]
[null,null,"Lendelede"]
[null,null,"Menen"]
[null,null,"Spiere-Helkijn"]
[null,null,"Waregem"]
[null,null,"Wervik"]
[null,null,"Wevelgem"]
[null,null,"Zwevegem"]